Cogmind - Beta 13 @@@ ROGUE MODE // 2024.04.09 @ 12:09:17 Player: Demo Result: Destroyed by as-05080 with Assembled Heavy Rifle Performance ------------- Evolutions (0) 0 Regions Visited (3) 600 Robots Destroyed (13) 65 Value Destroyed (279) 279 Prototype IDs (0) 0 Alien Tech Used (0) 0 Bonus (0) 0 TOTAL SCORE: 944 Bonus ------- None Cogmind --------- Core Integrity 0/250 Matter 245/300 Energy 85/125 System Corruption 6% Temperature Cool (0) Movement Rolling (110) Ox2 Location -10/Exiles Parts ------- > --- POWER (1) -------- Light Ion Engine > --- PROPULSION (2) --- Light Treads Wheel > --- UTILITY (2) ------ Large Storage Unit > --- WEAPON (2) ------- (None) > --- INVENTORY (15) --- Wheel High-capacity Battery (250) Medium Matter Pod (74) Medium Matter Pod (0) Medium Matter Pod (0) Large Matter Pod (0) Signal Interpreter Light Armor Plating Light Armor Plating Mining Laser Peak State ------------ > --- POWER ------------ (None) > --- PROPULSION ------- Light Treads Wheel > --- UTILITY ---------- Large Storage Unit Seismic Detector > --- WEAPON ----------- Particle Gun Grenade Launcher > --- INVENTORY -------- Light Ion Engine Light Treads Wheel Medium Matter Pod Medium Matter Pod Medium Matter Pod Light Armor Plating Light Armor Plating Light Armor Plating EM Pulse Gun [Rating: 8] Favorites ----------- Power Light Ion Engine Engine Light Ion Engine Propulsion Wheel Treads Light Treads Wheel Wheel Utility Large Storage Unit Device Seismic Detector Storage Large Storage Unit Protection Light Armor Plating Weapon EM Pulse Gun Energy Gun EM Pulse Gun Ballistic Gun Light Assault Rifle Launcher Grenade Launcher Special Weapon Mining Laser Build | -11 -10 -10 -10 ------- Run | Yrd Mat Min Exi Slots Evolved . | . . . . Power . | . . . . Propulsion . | . . . . Utility . | . . . . Weapon . | . . . . Parts Attached 17 | 7 5 2 3 Power 2 | 1 . . 1 Engine 2 | 1 . . 1 Core . | . . . . Reactor . | . . . . Propulsion 4 | 2 1 . 1 Treads 3 | 1 1 . 1 Leg . | . . . . Wheel 1 | 1 . . . Hover . | . . . . Flight . | . . . . Utility 4 | 2 1 1 . Device 1 | 1 . . . Storage 2 | 1 1 . . Processor . | . . . . Hackware . | . . . . Protection 1 | . . 1 . Artifact . | . . . . Weapon 7 | 2 3 1 1 Energy Gun 3 | 1 2 . . Energy Cannon . | . . . . Ballistic Gun 1 | 1 . . . Ballistic Cannon . | . . . . Launcher 2 | . 1 . 1 Special Weapon 1 | . . 1 . Impact Weapon . | . . . . Slashing Weapon . | . . . . Piercing Weapon . | . . . . Special Melee Weapon . | . . . . Unidentified Prototypes . | . . . . Parts Lost 7 | . . 2 5 Power . | . . . . Propulsion 1 | . . . 1 Utility 2 | . . 1 1 Weapon 4 | . . 1 3 Highest Loss Streak 5 | . . 2 5 To Critical Strikes . | . . . . Average Slot Usage (%) 83 | . 84 83 78 Treads 13 | . 14 14 12 Wheel 14 | . 14 14 14 Device 9 | . 14 . . Storage 14 | . 14 14 14 Protection 4 | . . 12 11 Energy Gun 18 | . 21 15 11 Ballistic Gun 3 | . 6 . . Special Weapon 4 | . . 12 11 Naked Turns . | . . . . Heaviest Build 27 | 9 27 27 27 Greatest Support 10 | 10 10 10 10 Greatest Overweight (x) 2 | . 2 2 2 Average Overweight (x) 1 | . 1 2 1 Largest Inventory Capacity 15 | 8 15 15 15 Average Capacity 14 | 7 14 15 15 Most Carried 14 | 1 14 14 13 Average Carried 7 | . 5 12 12 Final Capacity 15 | 8 15 15 15 Final Carried 14 | 1 14 13 10 Class Distribution -------------------- 100% | Mutant Dominant Class ---------------- Mutant | -10/Materials Mutant | -10/Mines Mutant | -10/Exiles Resources | -11 -10 -10 -10 ----------- Run | Yrd Mat Min Exi Matter Collected 437 | 178 166 93 . Remotely . | . . . . Salvage Created 452 | 146 188 81 37 Parts 30 | 13 15 2 . Haulers Intercepted . | . . . . Recyclers Shooed . | . . . . Parts Field Recycled . | . . . . Retrieved Matter . | . . . . Parts Self-Destructed . | . . . . Prevented . | . . . . Kills | -11 -10 -10 -10 ------- Run | Yrd Mat Min Exi Combat Hostiles Destroyed 14 | . 6 2 6 Guns 6 | . 5 1 . AOE 8 | . 1 1 6 Classes Destroyed 6 | 2 3 . 1 Tunneler 3 | 3 . . . Recycler 1 | 1 . . . Watcher 1 | . 1 . . Swarmer 3 | . 3 . . Grunt 5 | . 3 2 . Assembled 6 | . . . 6 Best Kill Streak 6 | 4 3 2 6 Combat Bots Only 6 | . 3 2 6 Max Kills in Single Turn 3 | 1 1 1 3 Gunslinging . | . . . . Exploded 3 | . 1 1 3 Melee . | . . . . Uniques/NPCs Destroyed . | . . . . Combat | -11 -10 -10 -10 -------- Run | Yrd Mat Min Exi Hostile Shots Fired 85 | . 35 8 42 Missed 28 | . 15 2 11 Damage Taken 1023 | . 233 154 636 Core 258 | . 29 15 214 Absorbed by Shields . | . . . . Core Remaining (%) 100 | 100 . . . Volleys Fired 51 | 15 18 12 6 Largest 2 | 2 2 2 2 Hottest 165 | 60 105 105 165 Shots Fired 91 | 30 35 17 9 Gun 78 | 30 34 11 3 Cannon . | . . . . Launcher 5 | . 1 . 4 Special 8 | . . 6 2 Kinetic 28 | 15 13 . . Thermal 20 | . 4 11 5 Explosive 5 | . 1 . 4 Electromagnetic 38 | 15 17 6 . Robot Hit Streak 9 | 7 7 9 6 Robot Miss Streak 2 | 2 2 1 1 Penetration Max . | . . . . Secondary Targets 1 | . . 1 . Max Gunslinging Chain 1 | . . 1 . Shots Hit Robots 58 | 19 22 10 7 Core Hits 32 | 6 14 3 9 Critical Kills . | . . . . Critical Parts Destroyed 1 | 1 . . . Critical Strikes 1 | 1 . . . Destroy 1 | 1 . . . Melee Attacks . | . . . . Impact . | . . . . Slashing . | . . . . Piercing . | . . . . Sneak Attacks . | . . . . Combat Hostiles . | . . . . Follow-up Attacks . | . . . . Damage Inflicted 1002 | 203 317 188 294 Guns 627 | 203 254 142 28 Cannons . | . . . . Explosions 327 | . 63 46 218 Melee . | . . . . Ramming . | . . . . Kinetic 152 | 75 77 . . Thermal 211 | . 14 121 76 Explosive 281 | . 63 . 218 Electromagnetic 358 | 128 163 67 . Impact . | . . . . Slashing . | . . . . Piercing . | . . . . Highest Corruption 6 | . 1 1 6 Average Corruption 1 | . 1 1 1 Corruption Purged . | . . . . Corruption Blocked . | . . . . Effects 4 | . . 2 2 Message Errors 1 | . . 1 . Matter Fused 1 | . . . 1 Misfires 1 | . . . 1 Weapon Failures 1 | . . 1 . Overload Shots . | . . . . Overflow Damage 49 | . . 30 19 Projectiles . | . . . . Explosions 49 | . . 30 19 Melee . | . . . . Knockbacks . | . . . . Impact . | . . . . Kinetic . | . . . . Secondary . | . . . . Self-Inflicted Damage 92 | . . 52 40 Shots 2 | . . 1 1 Rammed . | . . . . Targets Rammed . | . . . . Kicked . | . . . . Crushed . | . . . . Highest Temperature 180 | 20 60 180 66 Average Temperature 32 | 9 21 54 34 Received Heat Transfer 181 | . 87 54 40 Siege Activations . | . . . . Robots Corrupted . | . . . . Combat Hostiles . | . . . . Parts Fried 2 | 1 1 . . Impact Corruptions . | . . . . Robots Melted . | . . . . Combat Hostiles . | . . . . Parts Melted 2 | . . 2 . Heat Transferred 396 | . 37 185 174 Parts Sabotaged . | . . . . Parts Stolen . | . . . . Parts Stripped . | . . . . Power Chain Reactions 1 | . . 1 . Alert | -11 -10 -10 -10 ------- Run | Yrd Mat Min Exi Peak Influence 145 | 20 145 99 . Initial 30 | . 13 30 . Average 71 | 7 75 89 . Maximum Alert Level . | . . . . Low Security (%) 100 | 100 100 100 . Level 1 . | . . . . Level 2 . | . . . . Level 3 . | . . . . Level 4 . | . . . . Level 5 . | . . . . High Security . | . . . . Max Security . | . . . . Squads Dispatched 2 | . 2 . . Investigation 2 | . 2 . . Extermination . | . . . . Reinforcement . | . . . . Assault . | . . . . Garrison . | . . . . Intercept . | . . . . Searches Triggered . | . . . . Construction Impeded . | . . . . Haulers Reinforced . | . . . . Active Scanning Responses . | . . . . Cargo Convoy Interrupts . | . . . . Stealth | -11 -10 -10 -10 --------- Run | Yrd Mat Min Exi Distress Signals . | . . . . Communications Jammed . | . . . . Distress Signals . | . . . . Times Spotted 18 | . 10 1 7 Peak Tracking Total 9 | . 3 1 9 Tactical Retreats 1 | . . . 1 Traps | -11 -10 -10 -10 ------- Run | Yrd Mat Min Exi Traps Triggered . | . . . . Indirectly . | . . . . Trap Hack Attempts . | . . . . Triggered . | . . . . Disarmed . | . . . . Reprogrammed . | . . . . Reused . | . . . . Traps Extracted . | . . . . Installed . | . . . . Triggered . | . . . . Machines | -11 -10 -10 -10 ---------- Run | Yrd Mat Min Exi Machines Disabled 1 | . . 1 . Max in Single Turn 1 | . . 1 . Machines Repaired . | . . . . Machines Dismantled . | . . . . Machines Sabotaged . | . . . . Overloaded Fab Kills . | . . . . Hacking | -11 -10 -10 -10 --------- Run | Yrd Mat Min Exi Machines Accessed 4 | . 4 . . Terminals 4 | . 4 . . Fabricators . | . . . . Repair Stations . | . . . . Recycling Units . | . . . . Scanalyzers . | . . . . Garrison Access . | . . . . Total Hacks 13 | . 13 . . Successful 4 | . 4 . . Failed 9 | . 9 . . Catastrophic 2 | . 2 . . Database Lockouts . | . . . . Manual 9 | . 9 . . Terminals 13 | . 13 . . Fabricators . | . . . . Repair Stations . | . . . . Recycling Units . | . . . . Scanalyzers . | . . . . Garrison Access . | . . . . Terminal Hacks 2 | . 2 . . Maintenance Status 1 | . 1 . . Hauler Manifests 1 | . 1 . . Fabricator Hacks . | . . . . Repair Station Hacks . | . . . . Recycling Unit Hacks . | . . . . Scanalyzer . | . . . . Garrison Access Hacks . | . . . . Unauthorized Hacks 2 | . 2 . . Terminals 2 | . 2 . . Track 1 | . 1 . . Assimilate 1 | . 1 . . Fabricators . | . . . . Repair Stations . | . . . . Recycling Units . | . . . . Scanalyzers . | . . . . Garrison Access . | . . . . Data Cores Recovered . | . . . . Used . | . . . . Hacking Detections 4 | . 4 . . Full Trace Events 4 | . 4 . . Feedback Events 1 | . 1 . . Corruption 1 | . 1 . . Feedback Blocked . | . . . . Robot Schematics Acquired . | . . . . Robots Built . | . . . . Authchips . | . . . . Time . | . . . . Total Robot Build Rating . | . . . . Part Schematics Acquired . | . . . . Parts Built . | . . . . Authchips . | . . . . Time . | . . . . Total Part Build Rating . | . . . . Parts Repaired . | . . . . Time . | . . . . Parts Recycled . | . . . . Recycled Matter . | . . . . Retrieved Matter . | . . . . Retrieved Components . | . . . . Parts Scanalyzed . | . . . . Part Schematics Acquired . | . . . . Parts Damaged . | . . . . Bothacking | -11 -10 -10 -10 ------------ Run | Yrd Mat Min Exi Used RIF Installer . | . . . . Robots Hacked . | . . . . Non-combat . | . . . . Combat . | . . . . Robot Hacks Applied . | . . . . Relay Couplers Released . | . . . . Fabnet Peak Effective % . | . . . . Robots Rewired . | . . . . Allies Hacked . | . . . . Hacks Repelled . | . . . . Allies | -11 -10 -10 -10 -------- Run | Yrd Mat Min Exi Total Allies . | . . . . Largest Group . | . . . . Highest-Rated Group . | . . . . Highest-Rated Ally . | . . . . Total Orders . | . . . . Ally Attacks . | . . . . Total Damage . | . . . . Kills . | . . . . Allies Corrupted . | . . . . Allies Melted . | . . . . Intel | -11 -10 -10 -10 ------- Run | Yrd Mat Min Exi Robot Analysis Total . | . . . . Derelict Logs Recovered 1 | . . 1 . Drone Launches . | . . . . Drone Recoveries . | . . . . Exploration | -11 -10 -10 -10 ------------- Run | Yrd Mat Min Exi Turns Passed 898 | 87 529 164 118 Spaces Moved 633 | 37 398 109 89 Core 3 | 3 . . . Treads . | . . . . Legs . | . . . . Wheels 630 | 34 398 109 89 Hover . | . . . . Flight . | . . . . Fastest Speed 50 | 50 80 110 95 Average Speed 107 | 77 109 110 109 Slowest Speed 110 | 80 110 110 110 Overloaded Moves . | . . . . Propulsion Burnouts . | . . . . Robots Hopped . | . . . . Cave-ins Triggered . | . . . . Exploration Rate (%) 31 | 4 58 25 38 Regions Visited 3 Branch Regions 2 Pre-discovered Areas . | . . . . Known Exits Taken . | . . . . Unknown Exits Taken 3 | 1 1 1 . Scrap Searched 1 | . . 1 . Spaces Dug 3 | . . 3 . Terrain Destroyed 29 | . 6 10 13 Melee . | . . . . Projectile 5 | . . 5 . AOE 24 | . 6 5 13 Terrain Rammed . | . . . . Walls Destroyed . | . . . . Machines Disabled . | . . . . Actions | -11 -10 -10 -10 --------- Run | Yrd Mat Min Exi Total 743 | 65 457 123 98 Wait 28 | 6 22 . . Move 630 | 36 397 108 89 Hop . | . . . . Pick Up 13 | . 12 1 . Fast Attach 8 | 7 1 . . Attach 6 | . 1 2 3 Detach 2 | 1 1 . . Swap 3 | . 3 . . Drop 2 | . 2 . . Fire 51 | 15 18 12 6 Melee . | . . . . Ram . | . . . . Kick . | . . . . Crush . | . . . . Escape Stasis . | . . . . Rewire . | . . . . Trap . | . . . . Miscellaneous . | . . . . Route ------- -11/Scrapyard -10/Materials (discovered 3 exits: [*Mat] / [*Min x2]) -10/Mines -10/Exiles (discovered 2 exits: Min x2) History --------- Turn | Location | Event 2 | -11/Scrapyard | Met Revision 17 20 | -11/Scrapyard | Discovered new exit (range 16) 88 | -11/Scrapyard | Entered Materials 305 | -10/Materials | Build established: Mutant 317 | -10/Materials | Discovered new exit (range 16) 399 | -10/Materials | Discovered new exit (range 16) 549 | -10/Materials | Discovered new exit (range 8) 617 | -10/Materials | Entered Mines 777 | -10/Mines | Deemed a non-threat by the Exiles lab entrance 777 | -10/Mines | Discovered new exit (range 5) 781 | -10/Mines | Entered Exiles 782 | -10/Exiles | Identified exit to Mines 808 | -10/Exiles | Met 8R-AWN 827 | -10/Exiles | Met EX-HEX 858 | -10/Exiles | Met EX-BIN 861 | -10/Exiles | Attacked by the Exiles 887 | -10/Exiles | Core integrity fell below 50% 897 | -10/Exiles | Core integrity fell below 20% 899 | -10/Exiles | Destroyed by as-05080 with Assembled Heavy Rifle Last Messages --------------- 00878_ System corrupted by crushing effect (+5). 00878_ as-50979 destroyed. 00878_ as-43336 destroyed. 00878_ Lgt. Armor Plating destroyed. 00878_ Destroyed Lgt. Armor Plating. 00878_ as-54593 destroyed. 00880_ System corrupted: Matter fused (-5). 00880_ Destroyed Asb. F-torch. 00880_ as-96320 destroyed. 00884_ as-53757 destroyed. 00884_ as-78918 destroyed. 00886_ Penetrated by HV Slug. 00888_ The unstable cave ceiling collapses. 00889_ Lgt. Treads destroyed. 00890_ HV Slug penetrates EX-BIN. 00890_ HV Slug penetrates Wall. 00892_ Penetrated by HV Slug. 00892_ Grenade Launcher destroyed. 00892_ Penetrated by HV Slug. 00896_ HV Slug penetrates Machine. Map ----- +----------------------------------------------------+ | ?????????????????????????????????????????????????? | | ??????????????????????????????????? ???????????? | | ????????????????????????????????? ???????????? | | ????????????????????????????????# ???????????? | | ????????????????????????????????# #??????????? | | ????????????????????????????????# #??"""""???? | | ????????????????????????????????# ###"" """??? | | ???????????????????????????????#" """??? | | ???????????????????????????????#" ""??? | | ???????????????????????????????#" ""??? | | ???????????????????????????????#" ""??? | | ???????????????????????????????#" """?? | | ???????????????????????????????#" """?? | | ????????????????????????????????# ""??? | | ????????????????????????????????# ""??? | | ???????????????????????????????## "X" "???? | | ???????????????????????????????? % """ ??? | | ????????????????????????????????# """""""???? | | ???????????????????????????????##"%% #######????? | | ??????????????????#???????????## ##?????????? | | ??????????????????# ?##??######" ##????????? | | ?????????????####X# #"###"""""" ##???????? | | ??????????? """""" #??###### | | ?????????? "" """ " # """"" | | ?????????? " " % " """ | | ?????????? @ "" | | ?????????? % " | | ?????????? | | ??????????? | | ???????????" c | | ????????????"" """""" | | ???????????? ######""" | | ???????????? ""##????#####""" | | ????????????? """##?????????##""" | | ????????????? """##???????????#"""" | | ?????????????? ""?????????????#"" | | ?????????????? ????????????????""" | | ???????????????? ??????????????? | | ?????????????????? ????????????????? | | ????????????????????? ???????????????? | | ?????????????????????????????????????? | | ?????????????????????????????????????? " | | ???????????????????????????????????????" "" | | ????????????????????????????????????????" " " ""# | | ??????????????????????????????????????????""" """# | | ????????????????????????????????????????????""???? | | ?????????????????????????????????????????????????? | | ?????????????????????????????????????????????????? | | ?????????????????????????????????????????????????? | | ?????????????????????????????????????????????????? | +----------------------------------------------------+ Best States ------------- Heat Dissipation 25 Energy Generation 10 Energy Capacity 125 Matter Stores 300 Matter Capacity 300 Sight Range 16 Terrain Scan Density 10 Armor Coverage 150 Evasion (%) 44 Item Schematics ----------------- None Robot Schematics ------------------ None Fabricated ------------ Nothing Alien Tech Used ----------------- None Achievements -------------- None Challenges ------------ None Game ------ Seed FortressTractorHammer Manual? 0 Play Time 00:08:23 Cumulative 63.7 hours Start 2024.04.09 @ 12:01:51 End 2024.04.09 @ 12:09:17 Sessions 1 Manual Loads 0 Difficulty Rogue Special Mode None Game No. 76 Rogue 76 Adventurer 0 Explorer 0 Win Type - Total 0 Types 0/0/0/0/0/0/0/0/0 Lore% 41 Gallery% 60 Achievement% 48 Wizard Run 0 Options --------- Layout 1 ASCII 0 Keyboard 0 Movement Numpad Keybinds 0 Fullscreen 1 Font 24/Smallcaps Map View 50x35 Zoom Use 0% Tactical HUD 1 Map Filters NONE Filters NONE Steam 1 RUN: f50e3727-6c51-4ce9-b07b-2347c7576d2d